fUST/lending_fUST_20251115
["ID","MTS","AMOUNT","RATE_DAILY","PERIOD"]
[394029814,1763200326312,-624.67,0.00052328,120]
[394029815,1763200326321,-609.02,0.00052328,120]
[394029816,1763200326331,-500.0,0.00052328,120]
[394029817,1763200326342,-500.0,0.00052328,120]
[394029818,1763200326351,-500.0,0.00052328,120]
[394029819,1763200326360,-500.0,0.00052328,120]
[394029820,1763200326370,-500.0,0.00052328,120]
[394029821,1763200326379,-745.41,0.00052328,120]
[394029822,1763200326388,-500.0,0.00052328,120]
[394029823,1763200326397,-500.0,0.00052328,120]
[394029824,1763200326407,-474.88861802,0.00052328,120]
[394029825,1763200326416,-4568.1,0.00052328,3]
[394029826,1763200326425,-500.0,0.00052328,120]
[394029827,1763200326434,-1131.39,0.00052328,120]
[394029828,1763200326444,-631.00053191,0.00052328,120]
[394029829,1763200326453,-586.35547915,0.00052328,120]
[394029830,1763200326463,-500.0,0.00052328,120]
[394029831,1763200326472,-500.0,0.00052328,120]
[394029832,1763200326482,-797.3,0.00052328,120]
[394029833,1763200326491,-849.34,0.00052328,120]
[394029834,1763200326500,-500.0,0.00052328,120]
[394029835,1763200326509,-577.74,0.00052328,120]
[394029836,1763200326518,-647.88,0.00052328,120]
[394029837,1763200326528,-504.5193049,0.00052328,120]
[394029838,1763200326537,-566.74,0.00052328,120]
[394029839,1763200326547,-636.73,0.00052328,120]
[394029840,1763200326555,-500.0,0.00052328,30]
[394029841,1763200326564,-500.0,0.00052328,120]
[394029842,1763200326574,-500.0,0.00052328,120]
[394029843,1763200326584,-1133.68,0.00052328,120]
[394029844,1763200326594,-500.0,0.00052328,120]
[394029845,1763200326603,-500.0,0.00052328,120]
[394029846,1763200326613,-1012.59,0.00052328,120]
[394029847,1763200326623,-500.0,0.00052328,120]
[394029848,1763200326632,-1236.1,0.00052328,120]
[394029849,1763200326642,-500.0,0.00052328,120]
[394029850,1763200326651,-800.22,0.00052328,120]
[394029851,1763200326661,-500.0,0.00052328,120]
[394029852,1763200326671,-815.37,0.00052328,120]
[394029853,1763200326680,-500.0,0.00052328,120]
[394029854,1763200326689,-1270.32,0.00052328,120]
[394029855,1763200326699,-500.0,0.00052328,120]
[394029856,1763200326708,-617.48,0.00052328,120]
[394029857,1763200326718,-2708.03,0.00052328,120]
[394029858,1763200326729,-500.0,0.00052328,120]
[394029859,1763200326738,-500.0,0.00052328,120]
[394029860,1763200326748,-508.70931163,0.00052328,120]
[394029861,1763200326757,-500.0,0.00052328,120]
[394029862,1763200326767,-545.70280706,0.00052328,120]
[394029863,1763200326777,-1700.39,0.00052328,120]
[394029864,1763200326787,-845.92,0.00052328,120]
[394029865,1763200326796,-590.7,0.00052328,120]
[394029866,1763200326806,-500.0,0.00052328,120]
[394029867,1763200326815,-500.0,0.00052328,7]
[394029868,1763200326825,-500.0,0.00052328,120]
[394029869,1763200326836,-576.07,0.00052328,120]
[394029870,1763200326846,-500.0,0.00052328,120]
[394029871,1763200326855,-500.0,0.00052328,120]
[394029872,1763200326864,-500.0,0.00052328,120]
[394029873,1763200326873,-217.12435542,0.00052328,2]
[394029874,1763200326882,-221.6,0.00052328,120]
[394029875,1763200326891,-1000.0,0.00052328,2]
[394029876,1763200326901,-500.0,0.00052328,120]
[394029877,1763200326911,-500.0,0.00052328,120]
[394029878,1763200326931,-812.44,0.00052328,2]
[394029879,1763200326940,-557.41,0.00052328,120]
[394029880,1763200326950,-457.76,0.00052328,20]
[394029881,1763200326960,-1000.0,0.00052328,30]
[394029882,1763200326969,-500.0,0.00052328,60]
[394029883,1763200326979,-988.0,0.00052388,120]
[394029884,1763200326989,-629.0,0.00052388,120]
[394029885,1763200327001,-160.0,0.00052517,14]
[394029886,1763200327011,-500.0,0.00052602,120]
[394029887,1763200327020,-500.0,0.00052602,120]
[394029888,1763200327029,-500.0,0.00052602,120]
[394029889,1763200327038,-687.74,0.00052602,120]
[394029890,1763200327047,-554.45,0.00052602,120]
[394029891,1763200327056,-500.0,0.00052602,120]
[394029892,1763200327065,-500.0,0.00052602,120]
[394029893,1763200327075,-500.0,0.00052602,120]
[394029894,1763200327084,-582.92,0.00052602,120]
[394029895,1763200327093,-500.0,0.00052602,120]
[394029896,1763200327102,-790.87,0.00052602,120]
[394029897,1763200327112,-629.47,0.00052602,120]
[394029898,1763200327121,-673.94,0.00052602,120]
[394029899,1763200327130,-500.0,0.00052602,120]
[394029900,1763200327140,-758.17,0.00052602,120]
[394029901,1763200327152,-590.85,0.00052602,120]
[394029902,1763200327161,-500.0,0.00052602,120]
[394029903,1763200327170,-731.68,0.00052602,120]
[394029904,1763200327179,-571.3,0.00052602,120]
[394029905,1763200327188,-500.0,0.00052602,120]
[394029906,1763200327198,-1090.76,0.00052602,7]
[394029907,1763200327207,-3400.85,0.00052602,2]
[394029908,1763200327219,-1174.97,0.00052602,120]
[394029909,1763200327229,-618.7,0.00052602,120]
[394029910,1763200327238,-506.21,0.00052602,120]
[394029911,1763200327247,-500.0,0.00052602,120]
[394029912,1763200327257,-500.0,0.00052602,120]
[394029913,1763200327267,-536.43,0.00052602,120]
[394029914,1763200327276,-505.46,0.00052602,120]
[394029915,1763200327287,-500.0,0.00052602,120]
[394029916,1763200327297,-500.0,0.00052602,120]
[394029917,1763200327306,-500.0,0.00052602,120]
[394029918,1763200327315,-566.44,0.00052602,120]
[394029919,1763200327325,-829.99,0.00052602,120]
[394029920,1763200327334,-500.0,0.00052602,120]
[394029921,1763200327343,-500.0,0.00052602,120]
[394029922,1763200327351,-500.0,0.00052602,120]
[394029923,1763200327360,-500.0,0.00052602,120]
[394029924,1763200327369,-500.0,0.00052602,120]
[394029925,1763200327378,-500.0,0.00052602,120]
[394029926,1763200327387,-546.38,0.00052602,120]
[394029927,1763200327396,-513.41499901,0.00052602,120]
[394029928,1763200327406,-785.26,0.00052602,120]
[394029929,1763200327415,-500.0,0.00052602,120]
[394029930,1763200327425,-500.0,0.00052602,120]
[394029931,1763200327434,-500.0,0.00052602,120]
[394029932,1763200327443,-238.28877956,0.00052602,120]
[394029933,1763200327453,-400.27591073,0.00052602,120]
[394029934,1763200327462,-500.0,0.00052602,120]
[394029935,1763200327472,-421.25708559,0.00052602,120]
[394029936,1763200327481,-445.56199218,0.00052602,120]
[394029937,1763200327490,-1165.61,0.00052602,120]
[394029938,1763200327500,-629.76,0.00052602,120]
[394029939,1763200327514,-500.0,0.00052602,120]
[394029940,1763200327524,-511.51,0.00052602,2]
[394029941,1763200327533,-500.0,0.00052602,120]
[394029942,1763200327543,-500.0,0.00052602,120]
[394029943,1763200327552,-500.0,0.00052602,120]
[394029944,1763200327562,-500.0,0.00052602,120]
[394029945,1763200327571,-515.28,0.00052602,120]
[394029946,1763200327580,-500.0,0.00052602,120]
[394029947,1763200327590,-958.77,0.00052602,120]
[394029948,1763200327599,-500.0,0.00052602,120]
[394029949,1763200327609,-500.0,0.00052602,120]
[394029950,1763200327618,-500.0,0.00052602,120]
[394029951,1763200327628,-500.0,0.00052602,120]
[394029952,1763200327637,-500.0,0.00052602,120]
[394029953,1763200327646,-500.0,0.00052602,120]
[394029954,1763200327656,-531.24,0.00052602,120]
[394029955,1763200327666,-510.3853434,0.00052602,120]
[394029956,1763200327675,-1312.52,0.00052602,120]
[394029957,1763200327685,-666.72,0.00052602,120]
[394029958,1763200327696,-500.0,0.00052602,120]
[394029959,1763200327705,-500.0,0.00052602,120]
[394029960,1763200327715,-500.0,0.00052602,120]
[394029961,1763200327725,-500.0,0.00052602,120]
[394029962,1763200327734,-505.97,0.00052602,120]
[394029963,1763200327744,-500.0,0.00052602,120]
[394029964,1763200327753,-507.65,0.00052602,2]
[394029965,1763200327762,-500.0,0.00052602,120]
[394029966,1763200327772,-655.84,0.00052602,120]
[394029967,1763200327782,-500.0,0.00052602,120]
[394029968,1763200327791,-566.68,0.00052602,120]
[394029969,1763200327800,-500.0,0.00052602,120]
[394029970,1763200327810,-629.45,0.00052602,120]
[394029971,1763200327819,-500.0,0.00052602,120]
[394029972,1763200327828,-532.44,0.00052602,120]
[394029973,1763200327837,-517.42,0.00052602,120]
[394029974,1763200327846,-500.0,0.00052602,120]
[394029975,1763200327856,-512.08,0.00052602,120]
[394029976,1763200327865,-500.0,0.00052602,120]
[394029977,1763200327874,-948.59,0.00052602,120]
[394029978,1763200327883,-500.0,0.00052602,120]
[394029979,1763200327892,-1011.89,0.00052602,120]
[394029980,1763200327902,-875.77,0.00052602,120]
[394029981,1763200327911,-505.33443087,0.00052602,120]
[394029982,1763200327920,-500.0,0.00052602,120]
[394029983,1763200327930,-500.0,0.00052602,120]
[394029984,1763200327940,-500.0,0.00052602,120]
[394029985,1763200327950,-500.0,0.00052602,120]
[394029986,1763200327959,-500.0,0.00052602,120]
[394029987,1763200327968,-604.95,0.00052602,120]
[394029988,1763200327979,-500.0,0.00052602,120]
[394029989,1763200327988,-564.94,0.00052602,120]
[394029990,1763200327998,-500.0,0.00052602,120]
[394029991,1763200328008,-500.0,0.00052602,120]
[394029992,1763200328021,-1119.68,0.00052602,120]
[394029993,1763200328031,-1259.05,0.00052602,120]
[394029994,1763200328041,-865.15,0.00052602,120]
[394029995,1763200328051,-955.73,0.00052602,120]
[394029996,1763200328060,-500.0,0.00052602,120]
[394029997,1763200328069,-500.0,0.00052602,120]
[394029998,1763200328079,-500.0,0.00052602,21]
[394029999,1763200328090,-500.0,0.00052602,120]
[394030000,1763200328099,-1298.83,0.00052602,120]
[394030001,1763200328108,-687.91,0.00052602,120]
[394030002,1763200328118,-500.0,0.00052602,120]
[394030003,1763200328127,-500.0,0.00052602,120]
[394030004,1763200328137,-1584.66,0.00052602,120]
[394030005,1763200328146,-415.74956799,0.00052602,120]
[394030006,1763200328156,-625.34,0.00052602,120]
[394030007,1763200328165,-500.0,0.00052602,120]
[394030008,1763200328174,-500.0,0.00052602,120]
[394030009,1763200328184,-320.05221297,0.00052602,120]
[394030010,1763200328193,-626.26,0.00052602,120]
[394030011,1763200328202,-500.0,0.00052602,120]
[394030012,1763200328213,-776.15,0.00052602,120]
[394030013,1763200328224,-1059.33,0.00052602,120]
[394030014,1763200328233,-500.0,0.00052602,120]
[394030015,1763200328243,-2689.19,0.00052602,120]
[394030016,1763200328253,-500.0,0.00052602,120]
[394030017,1763200328263,-1158.62,0.00052602,120]
[394030018,1763200328272,-520.26,0.00052602,120]
[394030019,1763200328281,-500.0,0.00052602,120]
[394030020,1763200328292,-500.0,0.00052602,120]
[394030021,1763200328301,-777.19,0.00052602,120]
[394030022,1763200328311,-500.0,0.00052602,120]
[394030023,1763200328320,-500.0,0.00052602,120]
[394030024,1763200328329,-500.0,0.00052602,120]
[394030025,1763200328339,-1619.88,0.00052602,30]
[394030026,1763200328348,-1089.69,0.00052602,120]
[394030027,1763200328357,-500.0,0.00052602,120]
[394030028,1763200328366,-576.07,0.00052602,120]
[394030029,1763200328376,-500.0,0.00052602,120]
[394030030,1763200328385,-1298.65,0.00052602,120]
[394030031,1763200328394,-527.42,0.00052602,120]
[394030032,1763200328404,-500.0,0.00052602,120]
[394030033,1763200328413,-2380.54,0.00052602,120]
[394030034,1763200328423,-1477.9,0.00052602,120]
[394030035,1763200328432,-500.0,0.00052602,120]
[394030036,1763200328442,-979.94,0.00052602,120]
[394030037,1763200328452,-745.02,0.00052602,120]
[394030038,1763200328461,-500.0,0.00052602,120]
[394030039,1763200328471,-500.41,0.00052602,120]
[394030040,1763200328480,-500.0,0.00052602,120]
[394030041,1763200328490,-500.0,0.00052602,120]
[394030042,1763200328499,-500.0,0.00052602,120]
[394030043,1763200328508,-507.72,0.00052602,120]
[394030044,1763200328518,-539.7,0.00052602,120]
[394030045,1763200328527,-789.21,0.00052602,120]
[394030046,1763200328537,-500.0,0.00052602,120]
[394030047,1763200328547,-500.0,0.00052602,120]
[394030048,1763200328557,-937.06,0.00052602,120]
[394030049,1763200328566,-500.0,0.00052602,120]
[394030050,1763200328576,-500.0,0.00052602,120]
[394030051,1763200328586,-523.49,0.00052602,120]
[394030052,1763200328596,-571.26,0.00052602,120]
[394030053,1763200328606,-500.0,0.00052602,120]
[394030054,1763200328615,-840.74,0.00052602,120]
[394030055,1763200328625,-839.73,0.00052602,120]
[394030056,1763200328634,-500.0,0.00052602,120]
[394030057,1763200328644,-500.0,0.00052602,120]
[394030058,1763200328654,-548.3,0.00052602,120]
[394030059,1763200328664,-533.64,0.00052602,120]
[394030060,1763200328674,-505.81658699,0.00052602,120]
[394030061,1763200328685,-500.0,0.00052602,120]
[394030062,1763200328702,-1390.62,0.00052602,120]
[394030063,1763200328713,-500.0,0.00052602,120]
[394030064,1763200328723,-572.61,0.00052602,120]
[394030065,1763200328733,-1276.71,0.00052602,120]
[394030066,1763200328744,-1188.94,0.00052602,120]
[394030067,1763200328754,-1077.77,0.00052602,120]
[394030068,1763200328765,-500.0,0.00052602,120]
[394030069,1763200328775,-1791.91,0.00052602,120]
[394030070,1763200328785,-500.0,0.00052602,120]
[394030071,1763200328795,-500.0,0.00052602,120]
[394030072,1763200328804,-500.0,0.00052602,120]
[394030073,1763200328814,-500.0,0.00052602,120]
[394030074,1763200328824,-1017.14,0.00052602,120]
[394030075,1763200328834,-500.0,0.00052602,120]
[394030076,1763200328843,-500.0,0.00052602,120]
[394030077,1763200328852,-936.67,0.00052602,120]
[394030078,1763200328862,-500.0,0.00052602,120]
[394030079,1763200328871,-500.0,0.00052602,120]
[394030080,1763200328881,-649.89,0.00052602,120]
[394030081,1763200328891,-1776.75,0.00052602,120]
[394030082,1763200328901,-500.0,0.00052602,120]
[394030083,1763200328910,-500.0,0.00052602,120]
[394030084,1763200328920,-500.0,0.00052602,120]
[394030085,1763200328929,-500.0,0.00052602,120]
[394030086,1763200328939,-532.97,0.00052602,120]
[394030087,1763200328949,-500.0,0.00052602,120]
[394030088,1763200328959,-777.09,0.00052602,120]
[394030089,1763200328969,-500.0,0.00052602,120]
[394030090,1763200328978,-500.0,0.00052602,120]
[394030091,1763200328988,-1276.7,0.00052602,7]
[394030092,1763200328998,-927.9,0.00052602,120]
[394030093,1763200329007,-500.0,0.00052602,120]
[394030094,1763200329017,-979.1,0.00052602,120]
[394030095,1763200329027,-769.66,0.00052602,120]
[394030096,1763200329037,-500.0,0.00052602,120]
[394030097,1763200329046,-500.0,0.00052602,120]
[394030098,1763200329056,-500.0,0.00052602,120]
[394030099,1763200329066,-624.67,0.00052602,120]
[394030100,1763200329075,-609.02,0.00052602,120]
[394030101,1763200329085,-500.0,0.00052602,120]
[394030102,1763200329095,-500.0,0.00052602,120]
[394030103,1763200329105,-500.0,0.00052602,120]
[394030104,1763200329114,-500.0,0.00052602,120]
[394030105,1763200329124,-500.0,0.00052602,120]
[394030106,1763200329134,-745.41,0.00052602,120]
[394030107,1763200329143,-500.0,0.00052602,120]
[394030108,1763200329153,-500.0,0.00052602,120]
[394030109,1763200329163,-4568.1,0.00052602,3]
[394030110,1763200329173,-500.0,0.00052602,120]
[394030111,1763200329182,-1131.39,0.00052602,120]
[394030112,1763200329193,-500.0,0.00052602,120]
[394030113,1763200329202,-500.0,0.00052602,120]
[394030114,1763200329214,-797.3,0.00052602,120]
[394030115,1763200329225,-849.34,0.00052602,120]
[394030116,1763200329235,-500.0,0.00052602,120]
[394030117,1763200329245,-577.74,0.00052602,120]
[394030118,1763200329255,-647.88,0.00052602,120]
[394030119,1763200329266,-566.74,0.00052602,120]
[394030120,1763200329276,-636.73,0.00052602,120]
[394030121,1763200329286,-500.0,0.00052602,30]
[394030122,1763200329296,-500.0,0.00052602,120]
[394030123,1763200329306,-500.0,0.00052602,120]
[394030124,1763200329316,-1133.68,0.00052602,120]
[394030125,1763200329325,-500.0,0.00052602,120]
[394030126,1763200329334,-500.0,0.00052602,120]
[394030127,1763200329344,-1012.59,0.00052602,120]
[394030128,1763200329353,-500.0,0.00052602,120]
[394030129,1763200329363,-1236.1,0.00052602,120]
[394030130,1763200329372,-500.0,0.00052602,120]
[394030131,1763200329382,-800.22,0.00052602,120]
[394030132,1763200329392,-500.0,0.00052602,120]
[394030133,1763200329402,-815.37,0.00052602,120]
[394030134,1763200329412,-500.0,0.00052602,120]
[394030135,1763200329421,-1270.32,0.00052602,120]
[394030136,1763200329431,-500.0,0.00052602,120]
[394030137,1763200329441,-617.48,0.00052602,120]
[394030138,1763200329451,-2708.03,0.00052602,120]
[394030139,1763200329462,-500.0,0.00052602,120]
[394030140,1763200329472,-500.0,0.00052602,120]
[394030141,1763200329481,-500.0,0.00052602,120]
[394030142,1763200329491,-1700.39,0.00052602,120]
[394030143,1763200329501,-845.92,0.00052602,120]
[394030144,1763200329511,-590.7,0.00052602,120]
[394030145,1763200329522,-500.0,0.00052602,120]
[394030146,1763200329532,-500.0,0.00052602,7]
[394030147,1763200329541,-500.0,0.00052602,120]
[394030148,1763200329551,-576.07,0.00052602,120]
[394030149,1763200329561,-500.0,0.00052602,120]
[394030150,1763200329571,-500.0,0.00052602,120]
[394030151,1763200329580,-500.0,0.00052602,120]
[394030152,1763200329590,-221.6,0.00052602,120]
[394030153,1763200329599,-1000.0,0.00052602,2]
[394030154,1763200329609,-500.0,0.00052602,120]
[394030155,1763200329619,-500.0,0.00052602,120]
[394030156,1763200329628,-812.44,0.00052602,2]
[394030157,1763200329637,-557.41,0.00052602,120]
[394030158,1763200329649,-1000.0,0.00052602,30]
[394030159,1763200329660,-225.090246,0.00052632,2]
[394030160,1763200329669,-623816.92969702,0.000528,120]
[394030161,1763200329679,-503.77097291,0.00052876,120]
[394030162,1763200329689,-500.0,0.00052876,120]
[394030163,1763200329699,-179.901497,0.00052876,120]
[394030164,1763200329709,-687.74,0.00052876,120]
[394030165,1763200329718,-554.45,0.00052876,120]
[394030166,1763200329728,-500.0,0.00052876,120]
[394030167,1763200329737,-500.0,0.00052876,120]
[394030168,1763200329747,-500.0,0.00052876,120]
[394030169,1763200329757,-582.92,0.00052876,120]
[394030170,1763200329766,-500.0,0.00052876,120]
[394030171,1763200329775,-790.87,0.00052876,120]
[394030172,1763200329786,-629.47,0.00052876,120]
[394030173,1763200329795,-673.94,0.00052876,120]
[394030174,1763200329805,-500.0,0.00052876,120]
[394030175,1763200329815,-758.17,0.00052876,120]
[394030176,1763200329824,-590.85,0.00052876,120]
[394030177,1763200329834,-500.0,0.00052876,120]
[394030178,1763200329843,-731.68,0.00052876,120]
[394030179,1763200329853,-571.3,0.00052876,120]
[394030180,1763200329863,-500.0,0.00052876,120]
[394030181,1763200329872,-1090.76,0.00052876,7]
[394030182,1763200329882,-3400.85,0.00052876,2]
[394030183,1763200329891,-1174.97,0.00052876,120]
[394030184,1763200329900,-618.7,0.00052876,120]
[394030185,1763200329910,-506.21,0.00052876,120]
[394030186,1763200329920,-500.0,0.00052876,120]
[394030187,1763200329929,-500.0,0.00052876,120]
[394030188,1763200329939,-536.43,0.00052876,120]
[394030189,1763200329949,-505.46,0.00052876,120]
[394030190,1763200329958,-500.0,0.00052876,120]
[394030191,1763200329968,-500.0,0.00052876,120]
[394030192,1763200329977,-500.0,0.00052876,120]
[394030193,1763200329987,-566.44,0.00052876,120]
[394030194,1763200329997,-829.99,0.00052876,120]
[394030195,1763200330008,-500.0,0.00052876,120]
[394030196,1763200330018,-500.0,0.00052876,120]
[394030197,1763200330029,-500.0,0.00052876,120]
[394030198,1763200330039,-500.0,0.00052876,120]
[394030199,1763200330049,-609.18776203,0.00052876,120]
[394030200,1763200330058,-500.0,0.00052876,120]
[394030201,1763200330069,-546.38,0.00052876,120]
[394030202,1763200330079,-785.26,0.00052876,120]
[394030203,1763200330089,-500.0,0.00052876,120]
[394030204,1763200330098,-500.0,0.00052876,120]
[394030205,1763200330109,-466.32715386,0.00052876,120]
[394030206,1763200330120,-1165.61,0.00052876,120]
[394030207,1763200330131,-629.76,0.00052876,120]
[394030208,1763200330141,-500.0,0.00052876,120]
[394030209,1763200330151,-511.51,0.00052876,2]
[394030210,1763200330160,-500.0,0.00052876,120]
[394030211,1763200330170,-500.0,0.00052876,120]
[394030212,1763200330179,-500.0,0.00052876,120]
[394030213,1763200330189,-405.23275658,0.00052876,120]
[394030214,1763200330198,-515.28,0.00052876,120]
[394030215,1763200330207,-500.0,0.00052876,120]
[394030216,1763200330222,-958.77,0.00052876,120]
[394030217,1763200330231,-635.25081557,0.00052876,120]
[394030218,1763200330240,-500.0,0.00052876,120]
[394030219,1763200330250,-263.57166102,0.00052876,120]
[394030220,1763200330261,-516.99651844,0.00052876,120]
[394030221,1763200330271,-500.0,0.00052876,120]
[394030222,1763200330281,-233.37762115,0.00052876,120]
[394030223,1763200330292,-531.24,0.00052876,120]
[394030224,1763200330302,-1312.52,0.00052876,120]
[394030225,1763200330312,-666.72,0.00052876,120]
[394030226,1763200330321,-500.0,0.00052876,120]
[394030227,1763200330331,-500.0,0.00052876,120]
[394030228,1763200330340,-500.0,0.00052876,120]
[394030229,1763200330351,-500.0,0.00052876,120]
[394030230,1763200330360,-505.97,0.00052876,120]
[394030231,1763200330371,-500.0,0.00052876,120]
[394030232,1763200330380,-507.65,0.00052876,2]
[394030233,1763200330390,-500.0,0.00052876,120]
[394030234,1763200330399,-655.84,0.00052876,120]
[394030235,1763200330408,-302.28086284,0.00052876,120]
[394030236,1763200330418,-566.68,0.00052876,120]
[394030237,1763200330427,-517.81273315,0.00052876,120]
[394030238,1763200330437,-629.45,0.00052876,120]
[394030239,1763200330446,-500.0,0.00052876,120]
[394030240,1763200330456,-532.44,0.00052876,120]
[394030241,1763200330466,-517.42,0.00052876,120]
[394030242,1763200330476,-500.0,0.00052876,120]
[394030243,1763200330485,-512.08,0.00052876,120]
[394030244,1763200330495,-573.63057619,0.00052876,120]
[394030245,1763200330505,-948.59,0.00052876,120]
[394030246,1763200330516,-500.0,0.00052876,120]
[394030247,1763200330525,-1011.89,0.00052876,120]
[394030248,1763200330535,-875.77,0.00052876,120]
[394030249,1763200330545,-500.0,0.00052876,120]
[394030250,1763200330556,-500.0,0.00052876,120]
[394030251,1763200330565,-500.0,0.00052876,120]
[394030252,1763200330575,-500.0,0.00052876,120]
[394030253,1763200330585,-500.0,0.00052876,120]
[394030254,1763200330595,-604.95,0.00052876,120]
[394030255,1763200330605,-500.0,0.00052876,120]
[394030256,1763200330614,-564.94,0.00052876,120]
[394030257,1763200330624,-500.0,0.00052876,120]
[394030258,1763200330634,-500.0,0.00052876,120]
[394030259,1763200330644,-1119.68,0.00052876,120]
[394030260,1763200330655,-1259.05,0.00052876,120]
[394030261,1763200330665,-865.15,0.00052876,120]
[394030262,1763200330675,-955.73,0.00052876,120]
[394030263,1763200330685,-500.0,0.00052876,120]
[394030264,1763200330695,-500.0,0.00052876,120]
[394030265,1763200330705,-500.0,0.00052876,21]
[394030266,1763200330715,-500.0,0.00052876,120]
[394030267,1763200330725,-1298.83,0.00052876,120]
[394030268,1763200330735,-687.91,0.00052876,120]
[394030269,1763200330744,-500.0,0.00052876,120]
[394030270,1763200330755,-500.0,0.00052876,120]
[394030271,1763200330765,-1584.66,0.00052876,120]
[394030272,1763200330776,-625.34,0.00052876,120]
[394030273,1763200330788,-500.0,0.00052876,120]
[394030274,1763200330798,-500.0,0.00052876,120]
[394030275,1763200330809,-626.26,0.00052876,120]
[394030276,1763200330819,-500.0,0.00052876,120]
[394030277,1763200331034,-776.15,0.00052876,120]
[394030278,1763200331044,-1059.33,0.00052876,120]
[394030279,1763200331054,-500.0,0.00052876,120]
[394030280,1763200331064,-2689.19,0.00052876,120]
[394030281,1763200331074,-500.0,0.00052876,120]
[394030282,1763200331084,-1158.62,0.00052876,120]
[394030283,1763200331094,-520.26,0.00052876,120]
[394030284,1763200331104,-500.0,0.00052876,120]
[394030285,1763200331113,-500.0,0.00052876,120]
[394030286,1763200331124,-777.19,0.00052876,120]
[394030287,1763200331133,-475.53316158,0.00052876,120]
[394030288,1763200331143,-500.0,0.00052876,120]
[394030289,1763200331152,-500.0,0.00052876,120]
[394030290,1763200331162,-1619.88,0.00052876,30]
[394030291,1763200331171,-1089.69,0.00052876,120]
[394030292,1763200331181,-500.0,0.00052876,120]
[394030293,1763200331191,-576.07,0.00052876,120]
[394030294,1763200331200,-500.0,0.00052876,120]
[394030295,1763200331210,-1298.65,0.00052876,120]
[394030296,1763200331224,-527.42,0.00052876,120]
[394030297,1763200331234,-500.0,0.00052876,120]
[394030298,1763200331244,-2380.54,0.00052876,120]
[394030299,1763200331255,-1477.9,0.00052876,120]
[394030300,1763200331264,-258.24689316,0.00052876,120]
[394030301,1763200331274,-979.94,0.00052876,120]
[394030302,1763200331283,-745.02,0.00052876,120]
[394030303,1763200331294,-500.0,0.00052876,120]
[394030304,1763200331304,-500.41,0.00052876,120]
[394030305,1763200331314,-514.34285896,0.00052876,120]
[394030306,1763200331324,-500.0,0.00052876,120]
[394030307,1763200331333,-500.0,0.00052876,120]
[394030308,1763200331343,-507.72,0.00052876,120]
[394030309,1763200331353,-539.7,0.00052876,120]
[394030310,1763200331363,-789.21,0.00052876,120]
[394030311,1763200331373,-500.0,0.00052876,120]
[394030312,1763200331383,-500.0,0.00052876,120]
[394030313,1763200331393,-937.06,0.00052876,120]